[Event "Titled Tuesday Blitz September 28 2021"]
[White "Odegov, Artem"]
[Black "Gallego Alcaraz, Andres Felipe"]
[WhiteFideId "34183644"]
[BlackFideId "4402669"]
[WhiteElo "2257"]
[BlackElo "2394"]
[Result "0-1"]
[Round "08"]
[TimeControl "180+1"]
[Date "2021.09.28"]
[WhiteClock "0:00:03"]
[BlackClock "0:00:13"]

1. d4 {[%clk 0:02:24]}  Nf6 {[%clk 0:02:58]} 2. c4 {[%clk 0:02:24]}  d6 {[%clk 0:02:58]} 3. Nf3 {[%clk 0:02:24]}  Nbd7 {[%clk 0:02:59]} 4. Nc3 {[%clk 0:02:25]}  e5 {[%clk 0:02:59]} 5. d5 {[%clk 0:02:25]}  Be7 {[%clk 0:02:59]} 6. e4 {[%clk 0:02:26]}  O-O {[%clk 0:02:59]} 7. Bd3 {[%clk 0:02:26]}  a5 {[%clk 0:02:59]} 8. h3 {[%clk 0:02:26]}  Nc5 {[%clk 0:02:56]} 9. Bc2 {[%clk 0:02:26]}  Re8 {[%clk 0:02:51]} 10. Be3 {[%clk 0:02:24]}  Nfd7 {[%clk 0:02:48]} 11. g4 {[%clk 0:02:21]}  Bf8 {[%clk 0:02:44]} 12. Qd2 {[%clk 0:02:20]}  c6 {[%clk 0:02:44]} 13. O-O-O {[%clk 0:02:20]}  cxd5 {[%clk 0:02:40]} 14. Nxd5 {[%clk 0:02:20]}  Ne6 {[%clk 0:02:32]} 15. Ng5 {[%clk 0:02:12]}  Ndc5 {[%clk 0:02:30]} 16. f4 {[%clk 0:02:06]}  exf4 {[%clk 0:02:27]} 17. Bxf4 {[%clk 0:02:00]}  Nxf4 {[%clk 0:02:26]} 18. Qxf4 {[%clk 0:02:01]}  Be6 {[%clk 0:02:14]} 19. Rhf1 {[%clk 0:01:46]}  f6 {[%clk 0:01:41]} 20. Nxh7 {[%clk 0:00:59]}  Kxh7 {[%clk 0:01:07]} 21. e5+ {[%clk 0:00:58]}  Kg8 {[%clk 0:01:08]} 22. exf6 {[%clk 0:00:58]}  Qd7 {[%clk 0:01:08]} 23. Qg5 {[%clk 0:00:42]}  Bxd5 {[%clk 0:00:55]} 24. Qxd5+ {[%clk 0:00:36]}  Re6 {[%clk 0:00:47]} 25. Bh7+ {[%clk 0:00:04]}  Kh8 {[%clk 0:00:13]} 26. Qh5 {[%clk 0:00:04]}  gxf6 {[%clk 0:00:07]} 27. Bf5+ {[%clk 0:00:04]}  Kg8 {[%clk 0:00:07]} 28. Qg6+ {[%clk 0:00:04]}  Qg7 {[%clk 0:00:06]} 29. Bxe6+ {[%clk 0:00:05]}  Nxe6 {[%clk 0:00:07]} 30. Qf5 {[%clk 0:00:05]}  Qg5+ {[%clk 0:00:07]} 31. Kb1 {[%clk 0:00:05]}  Qxf5+ {[%clk 0:00:07]} 32. Rxf5 {[%clk 0:00:06]}  Kf7 {[%clk 0:00:07]} 33. Rdf1 {[%clk 0:00:05]}  Bg7 {[%clk 0:00:07]} 34. g5 {[%clk 0:00:05]}  Rh8 {[%clk 0:00:07]} 35. gxf6 {[%clk 0:00:05]}  Bf8 {[%clk 0:00:08]} 36. R5f3 {[%clk 0:00:04]}  b6 {[%clk 0:00:08]} 37. Re3 {[%clk 0:00:04]}  Rh6 {[%clk 0:00:08]} 38. Ref3 {[%clk 0:00:02]}  Rg6 {[%clk 0:00:08]} 39. a3 {[%clk 0:00:02]}  Nc5 {[%clk 0:00:08]} 40. h4 {[%clk 0:00:02]}  Ne4 {[%clk 0:00:08]} 41. Ka2 {[%clk 0:00:03]}  Nd2 {[%clk 0:00:08]} 42. R3f2 {[%clk 0:00:03]}  Nxf1 {[%clk 0:00:08]} 43. Rxf1 {[%clk 0:00:04]}  Rxf6 {[%clk 0:00:09]} 44. Re1 {[%clk 0:00:05]}  Bg7 {[%clk 0:00:09]} 45. Re2 {[%clk 0:00:06]}  Rf4 {[%clk 0:00:09]} 46. Rd2 {[%clk 0:00:05]}  Be5 {[%clk 0:00:09]} 47. b4 {[%clk 0:00:04]}  axb4 {[%clk 0:00:09]} 48. axb4 {[%clk 0:00:05]}  Rxc4 {[%clk 0:00:10]} 49. Kb3 {[%clk 0:00:06]}  Rxh4 {[%clk 0:00:10]} 50. Ka4 {[%clk 0:00:06]}  Ke6 {[%clk 0:00:10]} 51. Kb5 {[%clk 0:00:06]}  Bc3 {[%clk 0:00:09]} 52. Re2+ {[%clk 0:00:06]}  Kd7 {[%clk 0:00:09]} 53. Kxb6 {[%clk 0:00:06]}  Bxb4 {[%clk 0:00:09]} 54. Kb5 {[%clk 0:00:06]}  Bc5 {[%clk 0:00:10]} 55. Rg2 {[%clk 0:00:06]}  Rb4+ {[%clk 0:00:10]} 56. Ka5 {[%clk 0:00:07]}  Rb8 {[%clk 0:00:10]} 57. Rg7+ {[%clk 0:00:07]}  Kc6 {[%clk 0:00:11]} 58. Ka4 {[%clk 0:00:07]}  Rb4+ {[%clk 0:00:11]} 59. Ka5 {[%clk 0:00:07]}  Rb3 {[%clk 0:00:11]} 60. Rg4 {[%clk 0:00:01]}  Ra3+ {[%clk 0:00:12]} 61. Ra4 {[%clk 0:00:02]}  Rxa4+ {[%clk 0:00:12]} 62. Kxa4 {[%clk 0:00:03]}  Kd5 {[%clk 0:00:13]} 0-1


[Site "https://www.chess.com"]

[Event "Titled Tuesday Blitz September 28 2021"]
[White "Pastar, Slaven"]
[Black "Manukian, Artak"]
[WhiteFideId "14402718"]
[BlackFideId "13301373"]
[WhiteElo "2150"]
[BlackElo "2345"]
[Result "0-1"]
[Round "08"]
[TimeControl "180+1"]
[Date "2021.09.28"]
[WhiteClock "0:00:03"]
[BlackClock "0:00:25"]

1. b3 {[%clk 0:03:00]}  Nf6 {[%clk 0:02:59]} 2. Bb2 {[%clk 0:02:58]}  g6 {[%clk 0:03:00]} 3. g3 {[%clk 0:02:57]}  Bg7 {[%clk 0:03:00]} 4. Bg2 {[%clk 0:02:58]}  O-O {[%clk 0:03:01]} 5. Nf3 {[%clk 0:02:59]}  d5 {[%clk 0:03:01]} 6. O-O {[%clk 0:02:59]}  c5 {[%clk 0:03:01]} 7. d4 {[%clk 0:02:59]}  Ne4 {[%clk 0:03:00]} 8. Nfd2 {[%clk 0:02:52]}  Bf5 {[%clk 0:02:55]} 9. Nxe4 {[%clk 0:02:50]}  Bxe4 {[%clk 0:02:56]} 10. e3 {[%clk 0:02:41]}  Bxg2 {[%clk 0:02:53]} 11. Kxg2 {[%clk 0:02:41]}  Nc6 {[%clk 0:02:51]} 12. c3 {[%clk 0:02:37]}  cxd4 {[%clk 0:02:45]} 13. cxd4 {[%clk 0:02:36]}  h5 {[%clk 0:02:45]} 14. h4 {[%clk 0:02:35]}  Rc8 {[%clk 0:02:42]} 15. Nd2 {[%clk 0:02:35]}  Qa5 {[%clk 0:02:25]} 16. Nf3 {[%clk 0:02:28]}  Rc7 {[%clk 0:02:15]} 17. a3 {[%clk 0:02:16]}  Rfc8 {[%clk 0:02:13]} 18. Qd3 {[%clk 0:02:13]}  Nb8 {[%clk 0:02:09]} 19. Rfc1 {[%clk 0:02:01]}  Qa6 {[%clk 0:02:06]} 20. Qxa6 {[%clk 0:01:52]}  Nxa6 {[%clk 0:02:06]} 21. Rxc7 {[%clk 0:01:52]}  Rxc7 {[%clk 0:02:07]} 22. Rc1 {[%clk 0:01:52]}  Rxc1 {[%clk 0:02:06]} 23. Bxc1 {[%clk 0:01:52]}  b5 {[%clk 0:02:01]} 24. Kf1 {[%clk 0:01:47]}  Kf8 {[%clk 0:02:00]} 25. Ke2 {[%clk 0:01:48]}  Ke8 {[%clk 0:02:00]} 26. Kd3 {[%clk 0:01:48]}  Bf6 {[%clk 0:01:58]} 27. a4 {[%clk 0:01:47]}  bxa4 {[%clk 0:01:57]} 28. bxa4 {[%clk 0:01:48]}  Kd7 {[%clk 0:01:56]} 29. Ba3 {[%clk 0:01:44]}  e6 {[%clk 0:01:56]} 30. Kc3 {[%clk 0:01:36]}  Kc6 {[%clk 0:01:50]} 31. Kb3 {[%clk 0:01:31]}  Nc7 {[%clk 0:01:50]} 32. Bc5 {[%clk 0:01:27]}  a5 {[%clk 0:01:48]} 33. Ba3 {[%clk 0:01:12]}  Ne8 {[%clk 0:01:39]} 34. Ne1 {[%clk 0:01:08]}  Ng7 {[%clk 0:01:34]} 35. Nd3 {[%clk 0:01:05]}  Nf5 {[%clk 0:01:30]} 36. Bc5 {[%clk 0:00:42]}  Nh6 {[%clk 0:01:27]} 37. Kc2 {[%clk 0:00:35]}  Ng4 {[%clk 0:00:42]} 38. Kd2 {[%clk 0:00:33]}  Nh6 {[%clk 0:00:37]} 39. Nc1 {[%clk 0:00:30]}  Ng4 {[%clk 0:00:36]} 40. Ke2 {[%clk 0:00:30]}  Bd8 {[%clk 0:00:36]} 41. Ba3 {[%clk 0:00:24]}  Nf6 {[%clk 0:00:35]} 42. f3 {[%clk 0:00:22]}  Bc7 {[%clk 0:00:33]} 43. Kf2 {[%clk 0:00:20]}  Nd7 {[%clk 0:00:34]} 44. Nb3 {[%clk 0:00:17]}  Bb6 {[%clk 0:00:32]} 45. g4 {[%clk 0:00:15]}  f5 {[%clk 0:00:31]} 46. gxh5 {[%clk 0:00:15]}  gxh5 {[%clk 0:00:31]} 47. Nc1 {[%clk 0:00:12]}  Bc7 {[%clk 0:00:31]} 48. Nb3 {[%clk 0:00:10]}  Bb6 {[%clk 0:00:31]} 49. Bb2 {[%clk 0:00:09]}  Kb7 {[%clk 0:00:29]} 50. Bc3 {[%clk 0:00:08]}  Ka6 {[%clk 0:00:29]} 51. Kg3 {[%clk 0:00:08]}  Bc7+ {[%clk 0:00:29]} 52. Kf2 {[%clk 0:00:08]}  Bb6 {[%clk 0:00:29]} 53. Nc1 {[%clk 0:00:05]}  Bc7 {[%clk 0:00:28]} 54. Nd3 {[%clk 0:00:06]}  Bd6 {[%clk 0:00:26]} 55. Bd2 {[%clk 0:00:03]}  Nb6 {[%clk 0:00:26]} 56. Nf4 {[%clk 0:00:02]}  Bxf4 {[%clk 0:00:26]} 57. exf4 {[%clk 0:00:03]}  Nxa4 {[%clk 0:00:25]} 0-1


[Site "https://www.chess.com"]

[Event "Titled Tuesday Blitz September 28 2021"]
[White "Pichot, Alan"]
[Black "Demidov, Mikhail"]
[WhiteFideId "110973"]
[BlackFideId "4197143"]
[WhiteElo "2600"]
[BlackElo "2546"]
[Result "1/2-1/2"]
[Round "08"]
[TimeControl "180+1"]
[Date "2021.09.28"]
[WhiteClock "0:00:04"]
[BlackClock "0:00:08"]

1. e4 {[%clk 0:02:58]}  e6 {[%clk 0:02:59]} 2. d4 {[%clk 0:02:56]}  d5 {[%clk 0:02:59]} 3. Nc3 {[%clk 0:02:57]}  Bb4 {[%clk 0:02:58]} 4. exd5 {[%clk 0:02:55]}  exd5 {[%clk 0:02:59]} 5. Bd3 {[%clk 0:02:55]}  Ne7 {[%clk 0:02:59]} 6. Nf3 {[%clk 0:02:54]}  Nbc6 {[%clk 0:03:00]} 7. O-O {[%clk 0:02:52]}  Bg4 {[%clk 0:02:58]} 8. Be2 {[%clk 0:02:36]}  Bd6 {[%clk 0:02:51]} 9. h3 {[%clk 0:02:35]}  Bh5 {[%clk 0:02:50]} 10. Nb5 {[%clk 0:02:35]}  O-O {[%clk 0:02:47]} 11. c3 {[%clk 0:02:34]}  Re8 {[%clk 0:02:46]} 12. Be3 {[%clk 0:02:18]}  Nf5 {[%clk 0:02:37]} 13. Bd2 {[%clk 0:02:04]}  a6 {[%clk 0:02:30]} 14. Nxd6 {[%clk 0:02:03]}  Nxd6 {[%clk 0:02:30]} 15. Re1 {[%clk 0:02:00]}  Ne4 {[%clk 0:02:25]} 16. Bf4 {[%clk 0:01:58]}  Qd7 {[%clk 0:02:21]} 17. Ne5 {[%clk 0:01:51]}  Bxe2 {[%clk 0:02:18]} 18. Nxd7 {[%clk 0:01:42]}  Bxd1 {[%clk 0:02:18]} 19. Raxd1 {[%clk 0:01:43]}  Re7 {[%clk 0:01:31]} 20. Ne5 {[%clk 0:01:22]}  Nxe5 {[%clk 0:01:28]} 21. Bxe5 {[%clk 0:01:23]}  Rae8 {[%clk 0:01:25]} 22. Bf4 {[%clk 0:01:19]}  c6 {[%clk 0:01:21]} 23. f3 {[%clk 0:01:16]}  Nf6 {[%clk 0:01:18]} 24. Rxe7 {[%clk 0:01:16]}  Rxe7 {[%clk 0:01:19]} 25. Kf2 {[%clk 0:01:17]}  Nd7 {[%clk 0:01:17]} 26. g4 {[%clk 0:01:16]}  f6 {[%clk 0:01:17]} 27. b3 {[%clk 0:01:14]}  Kf7 {[%clk 0:01:15]} 28. a4 {[%clk 0:01:12]}  g5 {[%clk 0:01:11]} 29. Bd6 {[%clk 0:01:12]}  Re6 {[%clk 0:01:10]} 30. Ba3 {[%clk 0:01:13]}  Kg6 {[%clk 0:01:10]} 31. Re1 {[%clk 0:01:07]}  Rxe1 {[%clk 0:01:07]} 32. Kxe1 {[%clk 0:01:07]}  f5 {[%clk 0:01:07]} 33. Kf2 {[%clk 0:01:03]}  h5 {[%clk 0:01:06]} 34. Be7 {[%clk 0:00:52]}  Nb6 {[%clk 0:00:58]} 35. Kg3 {[%clk 0:00:47]}  Nd7 {[%clk 0:00:57]} 36. f4 {[%clk 0:00:41]}  gxf4+ {[%clk 0:00:53]} 37. Kxf4 {[%clk 0:00:41]}  fxg4 {[%clk 0:00:53]} 38. hxg4 {[%clk 0:00:42]}  hxg4 {[%clk 0:00:54]} 39. Kxg4 {[%clk 0:00:42]}  Kf7 {[%clk 0:00:54]} 40. Bh4 {[%clk 0:00:40]}  Ke6 {[%clk 0:00:52]} 41. Kf4 {[%clk 0:00:40]}  c5 {[%clk 0:00:52]} 42. Bd8 {[%clk 0:00:31]}  cxd4 {[%clk 0:00:46]} 43. cxd4 {[%clk 0:00:32]}  Nb8 {[%clk 0:00:46]} 44. Bc7 {[%clk 0:00:32]}  Nc6 {[%clk 0:00:47]} 45. Bb6 {[%clk 0:00:32]}  Nb4 {[%clk 0:00:45]} 46. Ke3 {[%clk 0:00:32]}  Kf5 {[%clk 0:00:43]} 47. Bc5 {[%clk 0:00:28]}  Nc6 {[%clk 0:00:43]} 48. Bb6 {[%clk 0:00:25]}  Kg4 {[%clk 0:00:42]} 49. Bc7 {[%clk 0:00:24]}  Ne7 {[%clk 0:00:41]} 50. Be5 {[%clk 0:00:16]}  Nf5+ {[%clk 0:00:41]} 51. Kd3 {[%clk 0:00:16]}  Kf3 {[%clk 0:00:41]} 52. Bc7 {[%clk 0:00:16]}  Ne7 {[%clk 0:00:40]} 53. Bd6 {[%clk 0:00:15]}  Nc6 {[%clk 0:00:39]} 54. Bc5 {[%clk 0:00:15]}  Nd8 {[%clk 0:00:35]} 55. Bd6 {[%clk 0:00:09]}  Ne6 {[%clk 0:00:35]} 56. Be5 {[%clk 0:00:08]}  Nf4+ {[%clk 0:00:32]} 57. Kc3 {[%clk 0:00:08]}  Ne6 {[%clk 0:00:16]} 58. Bf6 {[%clk 0:00:06]}  Ke4 {[%clk 0:00:16]} 59. Be5 {[%clk 0:00:06]}  Nd8 {[%clk 0:00:14]} 60. Bf6 {[%clk 0:00:05]}  Nc6 {[%clk 0:00:15]} 61. Bg7 {[%clk 0:00:05]}  b5 {[%clk 0:00:15]} 62. axb5 {[%clk 0:00:03]}  axb5 {[%clk 0:00:16]} 63. Bf8 {[%clk 0:00:02]}  Nxd4 {[%clk 0:00:14]} 64. Kb4 {[%clk 0:00:03]}  Kd3 {[%clk 0:00:14]} 65. Bc5 {[%clk 0:00:02]}  Ke4 {[%clk 0:00:13]} 66. Bb6 {[%clk 0:00:03]}  Kd3 {[%clk 0:00:11]} 67. Bc5 {[%clk 0:00:03]}  Ne6 {[%clk 0:00:06]} 68. Bb6 {[%clk 0:00:02]}  d4 {[%clk 0:00:06]} 69. Kxb5 {[%clk 0:00:03]}  Kc3 {[%clk 0:00:06]} 70. Bxd4+ {[%clk 0:00:03]}  Nxd4+ {[%clk 0:00:07]} 71. Kc5 {[%clk 0:00:04]}  Nxb3+ {[%clk 0:00:08]} 1/2-1/2


[Site "https://www.chess.com"]

[Event "Titled Tuesday Blitz September 28 2021"]
[White "Pires, Marcos Vinicius Torsani"]
[Black "Coto Mederos, Michel"]
[WhiteFideId "2118939"]
[BlackFideId "3508528"]
[WhiteElo "2273"]
[BlackElo "2427"]
[Result "0-1"]
[Round "08"]
[TimeControl "180+1"]
[Date "2021.09.28"]
[WhiteClock "0:00:46"]
[BlackClock "0:01:21"]

1. e4 {[%clk 0:02:53]}  e5 {[%clk 0:02:57]} 2. Nf3 {[%clk 0:02:52]}  Nc6 {[%clk 0:02:57]} 3. Nc3 {[%clk 0:02:51]}  Nf6 {[%clk 0:02:56]} 4. d4 {[%clk 0:02:51]}  exd4 {[%clk 0:02:56]} 5. Nxd4 {[%clk 0:02:51]}  Bb4 {[%clk 0:02:56]} 6. Nxc6 {[%clk 0:02:51]}  bxc6 {[%clk 0:02:57]} 7. Bd3 {[%clk 0:02:50]}  d5 {[%clk 0:02:57]} 8. exd5 {[%clk 0:02:51]}  cxd5 {[%clk 0:02:57]} 9. O-O {[%clk 0:02:50]}  O-O {[%clk 0:02:56]} 10. h3 {[%clk 0:02:50]}  h6 {[%clk 0:02:48]} 11. Qf3 {[%clk 0:02:50]}  Be6 {[%clk 0:02:44]} 12. Bf4 {[%clk 0:02:45]}  Bd6 {[%clk 0:02:41]} 13. Nb5 {[%clk 0:02:40]}  Bxf4 {[%clk 0:02:24]} 14. Qxf4 {[%clk 0:02:41]}  Ne8 {[%clk 0:02:04]} 15. Rad1 {[%clk 0:02:35]}  c5 {[%clk 0:02:00]} 16. Bf5 {[%clk 0:02:17]}  Qf6 {[%clk 0:01:55]} 17. g4 {[%clk 0:01:13]}  g6 {[%clk 0:01:54]} 18. Qxh6 {[%clk 0:01:11]}  gxf5 {[%clk 0:01:50]} 19. Qxf6 {[%clk 0:01:12]}  Nxf6 {[%clk 0:01:50]} 20. gxf5 {[%clk 0:01:09]}  Bxf5 {[%clk 0:01:51]} 21. Nc7 {[%clk 0:01:10]}  Rad8 {[%clk 0:01:48]} 22. c3 {[%clk 0:01:02]}  Bxh3 {[%clk 0:01:35]} 23. Rfe1 {[%clk 0:01:02]}  Rd7 {[%clk 0:01:36]} 24. Na6 {[%clk 0:01:01]}  Rc8 {[%clk 0:01:27]} 25. Re3 {[%clk 0:00:57]}  Be6 {[%clk 0:01:24]} 26. Rg3+ {[%clk 0:00:46]}  Kf8 {[%clk 0:01:24]} 27. Re1 {[%clk 0:00:46]}  Rd6 {[%clk 0:01:21]} 0-1


[Site "https://www.chess.com"]

[Event "Titled Tuesday Blitz September 28 2021"]
[White "Quintiliano Pinto, Renato R."]
[Black "Pridorozhni, Aleksei"]
[WhiteFideId "2117568"]
[BlackFideId "4127870"]
[WhiteElo "2439"]
[BlackElo "2565"]
[Result "1/2-1/2"]
[Round "08"]
[TimeControl "180+1"]
[Date "2021.09.28"]
[WhiteClock "0:00:22"]
[BlackClock "0:01:06"]

1. d4 {[%clk 0:03:00]}  d5 {[%clk 0:02:57]} 2. c4 {[%clk 0:03:00]}  e6 {[%clk 0:02:57]} 3. Nc3 {[%clk 0:03:00]}  c6 {[%clk 0:02:57]} 4. e3 {[%clk 0:03:00]}  Nf6 {[%clk 0:02:57]} 5. Nf3 {[%clk 0:03:01]}  Nbd7 {[%clk 0:02:57]} 6. Be2 {[%clk 0:03:01]}  dxc4 {[%clk 0:02:57]} 7. a4 {[%clk 0:03:01]}  Bb4 {[%clk 0:02:54]} 8. O-O {[%clk 0:03:00]}  Nb6 {[%clk 0:02:51]} 9. Qc2 {[%clk 0:02:52]}  a5 {[%clk 0:02:49]} 10. e4 {[%clk 0:02:38]}  h6 {[%clk 0:02:48]} 11. Rd1 {[%clk 0:02:24]}  O-O {[%clk 0:02:47]} 12. e5 {[%clk 0:02:22]}  Nfd5 {[%clk 0:02:46]} 13. Ne4 {[%clk 0:02:22]}  Bd7 {[%clk 0:02:37]} 14. Nfd2 {[%clk 0:02:11]}  f5 {[%clk 0:02:31]} 15. exf6 {[%clk 0:02:05]}  Nxf6 {[%clk 0:02:31]} 16. Nc5 {[%clk 0:02:04]}  Nfd5 {[%clk 0:02:17]} 17. Nxc4 {[%clk 0:01:58]}  Bxc5 {[%clk 0:02:10]} 18. dxc5 {[%clk 0:01:58]}  Nxc4 {[%clk 0:02:11]} 19. Bxc4 {[%clk 0:01:54]}  Qf6 {[%clk 0:02:11]} 20. Ra3 {[%clk 0:01:42]}  e5 {[%clk 0:02:00]} 21. Qe2 {[%clk 0:01:01]}  Kh8 {[%clk 0:01:47]} 22. Rf3 {[%clk 0:00:53]}  Qe7 {[%clk 0:01:47]} 23. Rxf8+ {[%clk 0:00:46]}  Rxf8 {[%clk 0:01:46]} 24. Bxd5 {[%clk 0:00:46]}  cxd5 {[%clk 0:01:47]} 25. Rxd5 {[%clk 0:00:47]}  e4 {[%clk 0:01:43]} 26. Be3 {[%clk 0:00:40]}  Bxa4 {[%clk 0:01:42]} 27. Bd4 {[%clk 0:00:38]}  Kh7 {[%clk 0:01:38]} 28. Re5 {[%clk 0:00:36]}  Qf7 {[%clk 0:01:28]} 29. Qxe4+ {[%clk 0:00:36]}  Qg6 {[%clk 0:01:26]} 30. Qxg6+ {[%clk 0:00:24]}  Kxg6 {[%clk 0:01:27]} 31. h4 {[%clk 0:00:23]}  Re8 {[%clk 0:01:20]} 32. Rd5 {[%clk 0:00:16]}  Bc6 {[%clk 0:01:16]} 33. Rd6+ {[%clk 0:00:16]}  Kf7 {[%clk 0:01:17]} 34. h5 {[%clk 0:00:15]}  Re1+ {[%clk 0:01:15]} 35. Kh2 {[%clk 0:00:14]}  Re4 {[%clk 0:01:16]} 36. Kg3 {[%clk 0:00:12]}  Re7 {[%clk 0:01:15]} 37. f3 {[%clk 0:00:12]}  Rd7 {[%clk 0:01:13]} 38. Rxd7+ {[%clk 0:00:11]}  Bxd7 {[%clk 0:01:14]} 39. Kf4 {[%clk 0:00:12]}  g6 {[%clk 0:01:13]} 40. g4 {[%clk 0:00:10]}  gxh5 {[%clk 0:01:13]} 41. gxh5 {[%clk 0:00:11]}  Bc6 {[%clk 0:01:11]} 42. Kg4 {[%clk 0:00:11]}  a4 {[%clk 0:01:09]} 43. Bc3 {[%clk 0:00:10]}  Bd5 {[%clk 0:01:09]} 44. Bd2 {[%clk 0:00:10]}  Kg7 {[%clk 0:01:09]} 45. f4 {[%clk 0:00:11]}  Bb3 {[%clk 0:01:04]} 46. Kh4 {[%clk 0:00:10]}  Bd1 {[%clk 0:01:04]} 47. Bc3+ {[%clk 0:00:11]}  Kf7 {[%clk 0:01:03]} 48. Be5 {[%clk 0:00:12]}  Be2 {[%clk 0:01:03]} 49. f5 {[%clk 0:00:12]}  Bd3 {[%clk 0:01:02]} 50. f6 {[%clk 0:00:12]}  Be2 {[%clk 0:01:02]} 51. Bd4 {[%clk 0:00:13]}  Bd1 {[%clk 0:01:02]} 52. Be3 {[%clk 0:00:13]}  Kxf6 {[%clk 0:01:01]} 53. Bxh6 {[%clk 0:00:13]}  Bf3 {[%clk 0:00:59]} 54. Bd2 {[%clk 0:00:13]}  Kg7 {[%clk 0:00:58]} 55. Kg5 {[%clk 0:00:12]}  Bc6 {[%clk 0:00:56]} 56. Bc3+ {[%clk 0:00:13]}  Kh7 {[%clk 0:00:57]} 57. Bd2 {[%clk 0:00:12]}  Bb5 {[%clk 0:00:57]} 58. h6 {[%clk 0:00:13]}  Bc6 {[%clk 0:00:57]} 59. Kf6 {[%clk 0:00:13]}  Bb5 {[%clk 0:00:58]} 60. Ke7 {[%clk 0:00:14]}  Bc6 {[%clk 0:00:58]} 61. Kd6 {[%clk 0:00:15]}  Kg6 {[%clk 0:00:59]} 62. Kc7 {[%clk 0:00:15]}  Kh7 {[%clk 0:00:59]} 63. Kb6 {[%clk 0:00:15]}  Kg6 {[%clk 0:00:59]} 64. Ka5 {[%clk 0:00:15]}  Kh7 {[%clk 0:01:00]} 65. Kb4 {[%clk 0:00:15]}  Kg6 {[%clk 0:01:00]} 66. b3 {[%clk 0:00:15]}  axb3 {[%clk 0:01:00]} 67. Kxb3 {[%clk 0:00:16]}  Kh7 {[%clk 0:01:01]} 68. Kb4 {[%clk 0:00:17]}  Kg6 {[%clk 0:01:02]} 69. Ka5 {[%clk 0:00:18]}  Kh7 {[%clk 0:01:02]} 70. Kb6 {[%clk 0:00:18]}  Kg6 {[%clk 0:01:03]} 71. Ka7 {[%clk 0:00:19]}  Kh7 {[%clk 0:01:04]} 72. Kb6 {[%clk 0:00:20]}  Kg6 {[%clk 0:01:05]} 73. Ka7 {[%clk 0:00:21]}  Kh7 {[%clk 0:01:06]} 74. Kb6 {[%clk 0:00:22]} 1/2-1/2


[Site "https://www.chess.com"]

[Event "Titled Tuesday Blitz September 28 2021"]
[White "Quparadze, Giga"]
[Black "Oparin, Grigoriy"]
[WhiteFideId "13602250"]
[BlackFideId "24125890"]
[WhiteElo "2658"]
[BlackElo "2604"]
[Result "1-0"]
[Round "08"]
[TimeControl "180+1"]
[Date "2021.09.28"]
[WhiteClock "0:01:04"]
[BlackClock "0:00:35"]

1. e4 {[%clk 0:03:00]}  e5 {[%clk 0:03:00]} 2. Nf3 {[%clk 0:02:59]}  Nc6 {[%clk 0:03:00]} 3. Bb5 {[%clk 0:02:59]}  Nf6 {[%clk 0:03:00]} 4. O-O {[%clk 0:02:58]}  Nxe4 {[%clk 0:03:00]} 5. d4 {[%clk 0:02:58]}  Nd6 {[%clk 0:03:00]} 6. Bxc6 {[%clk 0:02:58]}  dxc6 {[%clk 0:02:59]} 7. dxe5 {[%clk 0:02:59]}  Nf5 {[%clk 0:03:00]} 8. Qxd8+ {[%clk 0:02:59]}  Kxd8 {[%clk 0:03:01]} 9. Rd1+ {[%clk 0:02:59]}  Ke8 {[%clk 0:03:01]} 10. Nc3 {[%clk 0:02:59]}  Ne7 {[%clk 0:03:00]} 11. h3 {[%clk 0:02:57]}  h6 {[%clk 0:03:00]} 12. Ne2 {[%clk 0:02:57]}  c5 {[%clk 0:02:58]} 13. Nf4 {[%clk 0:02:55]}  Bd7 {[%clk 0:02:48]} 14. c4 {[%clk 0:02:49]}  Rd8 {[%clk 0:02:46]} 15. Be3 {[%clk 0:02:46]}  b6 {[%clk 0:02:44]} 16. Rd2 {[%clk 0:01:54]}  Bc6 {[%clk 0:02:39]} 17. Rxd8+ {[%clk 0:01:53]}  Kxd8 {[%clk 0:02:40]} 18. Rd1+ {[%clk 0:01:53]}  Kc8 {[%clk 0:02:39]} 19. Nd5 {[%clk 0:01:52]}  Bb7 {[%clk 0:02:35]} 20. Nh4 {[%clk 0:01:48]}  g6 {[%clk 0:02:25]} 21. e6 {[%clk 0:01:43]}  fxe6 {[%clk 0:02:17]} 22. Nxe7+ {[%clk 0:01:42]}  Bxe7 {[%clk 0:02:16]} 23. Nxg6 {[%clk 0:01:42]}  Re8 {[%clk 0:02:14]} 24. Nxe7+ {[%clk 0:01:42]}  Rxe7 {[%clk 0:02:15]} 25. Bxh6 {[%clk 0:01:42]}  Be4 {[%clk 0:02:14]} 26. Bg5 {[%clk 0:01:38]}  Rd7 {[%clk 0:02:14]} 27. Re1 {[%clk 0:01:36]}  Bd3 {[%clk 0:02:13]} 28. b3 {[%clk 0:01:36]}  b5 {[%clk 0:02:06]} 29. cxb5 {[%clk 0:01:36]}  c4 {[%clk 0:02:07]} 30. Bf6 {[%clk 0:01:30]}  cxb3 {[%clk 0:02:01]} 31. axb3 {[%clk 0:01:31]}  Bxb5 {[%clk 0:02:01]} 32. Rxe6 {[%clk 0:01:30]}  Rd3 {[%clk 0:02:01]} 33. b4 {[%clk 0:01:26]}  c5 {[%clk 0:01:57]} 34. bxc5 {[%clk 0:01:25]}  a5 {[%clk 0:01:57]} 35. Rb6 {[%clk 0:01:21]}  Rb3 {[%clk 0:01:54]} 36. Be5 {[%clk 0:01:20]}  a4 {[%clk 0:01:08]} 37. h4 {[%clk 0:01:18]}  Kd7 {[%clk 0:01:06]} 38. h5 {[%clk 0:01:15]}  Bd3 {[%clk 0:00:53]} 39. h6 {[%clk 0:01:12]}  Bf5 {[%clk 0:00:41]} 40. Rxb3 {[%clk 0:01:07]}  axb3 {[%clk 0:00:41]} 41. f3 {[%clk 0:01:08]}  Kc6 {[%clk 0:00:41]} 42. g4 {[%clk 0:01:07]}  Bh7 {[%clk 0:00:41]} 43. Kf2 {[%clk 0:01:05]}  Kxc5 {[%clk 0:00:41]} 44. Ke3 {[%clk 0:01:05]}  Kd5 {[%clk 0:00:42]} 45. Bg7 {[%clk 0:01:04]}  Ke6 {[%clk 0:00:40]} 46. f4 {[%clk 0:01:05]}  Bc2 {[%clk 0:00:38]} 47. f5+ {[%clk 0:01:04]}  Kf7 {[%clk 0:00:39]} 48. Bb2 {[%clk 0:01:04]}  Kg8 {[%clk 0:00:35]} 49. Kf4 {[%clk 0:01:04]} 1-0


[Site "https://www.chess.com"]